bitfinex-derivatives/quotes_SOLF0:USTF0_20250901
["timestamp","ask_amount","ask_price","bid_price","bid_amount"]
[1756746720534,0.02,198.13,198.09,200.0]
[1756746720830,0.03243295,198.14,198.09,200.0]
[1756746721037,0.02,198.13,198.09,200.0]
[1756746721533,139.56,198.12,198.09,200.0]
[1756746721831,0.02,198.11,198.09,200.0]
[1756746722039,0.02,198.1,198.09,200.0]
[1756746722533,0.52,198.1,198.09,38.42848979]
[1756746722733,0.52,198.1,198.09,38.40848979]
[1756746722932,0.02,198.1,198.09,38.40848979]
[1756746723235,0.02,198.1,197.88,4.54026898]
[1756746723236,140.16,198.1,197.91,7.62]
[1756746723432,70.7036,197.99,197.84,4.19943986]
[1756746723737,92.72,197.98,197.83,7.62]
[1756746723933,4.54026898,197.95,197.83,7.62]
[1756746724140,339.14,198.0,197.83,7.62]
[1756746724436,141.36,197.99,197.83,7.62]
[1756746724737,0.03703129,197.93,197.83,7.62]
[1756746725329,0.03703129,197.93,197.79,7.62]
[1756746725535,142.2,197.92,197.8,4.54026898]
[1756746725835,142.2,197.92,197.73,70.7949]
[1756746725836,142.2,197.92,197.81,7.62]
[1756746726036,339.14,198.0,197.82,4.54026898]
[1756746726332,339.14,198.0,197.76,4.54026898]
[1756746726333,148.48,197.99,197.76,4.54026898]
[1756746726537,0.03,197.93,197.78,4.54026898]
[1756746726837,4.54026898,197.98,197.81,7.62]
[1756746727133,339.14,198.0,197.9,7.62]
[1756746727342,339.14,198.0,197.86,7.62]
[1756746727638,150.4,198.06,197.96,7.62]
[1756746727832,0.94,198.04,197.83,8.03]
[1756746728034,4.54026898,198.12,197.89,4.54026898]
[1756746728231,0.94,198.07,197.93,8.03]
[1756746728533,0.94,198.07,197.84,70.7561]
[1756746728534,0.94,198.06,197.84,70.7559]
[1756746728730,0.94,198.04,197.89,8.03]
[1756746728931,0.94,198.08,197.94,4.54026898]
[1756746729133,152.06,198.08,197.95,8.03]
[1756746729331,152.06,198.08,197.9,70.7338]
[1756746729332,152.06,198.08,197.98,8.03]
[1756746729635,152.06,198.08,198.0,0.03276997]
[1756746729636,0.94,198.02,198.0,0.03276997]
[1756746729838,0.91,198.0,197.77,8.03]
[1756746730037,339.38,197.99,197.83,8.03]
[1756746730336,3.9,197.98,197.86,7.43971839]
[1756746730537,3.9,197.98,197.87,8.03]
[1756746731243,70.7277,197.92,197.81,8.03]
[1756746731446,0.91,197.93,197.81,8.03]
[1756746731639,152.16,197.92,197.81,8.03]
[1756746731933,0.03603998,197.89,197.81,7.43971839]
[1756746732140,152.18,197.92,197.82,8.03]
[1756746732637,152.18,197.92,197.76,8.03]
[1756746732838,159.61971839,197.92,197.76,8.03]
[1756746733235,0.95,197.91,197.76,8.03]
[1756746733540,0.95,197.89,197.76,8.03]
[1756746733735,152.44,197.88,197.76,8.03]
[1756746733937,0.95,197.87,197.7,8.03]
[1756746734644,339.38,197.99,197.67,70.8162]
[1756746734645,75.72,197.86,197.73,8.03]
[1756746734832,74.84027908,197.87,197.73,8.03]
[1756746735030,0.95,197.88,197.75,8.03]
[1756746735229,75.64,197.87,197.75,8.03]
[1756746735738,0.95,197.86,197.69,8.03]
[1756746735939,0.95,197.84,197.69,8.03]
[1756746736138,339.54,197.85,197.69,8.03]
[1756746736338,0.95,197.77,197.57,8.03]
[1756746736638,155.04,197.76,197.57,8.03]
[1756746736839,0.95,197.73,197.57,8.03]
[1756746737035,117.78,197.72,197.57,8.03]
[1756746737541,7.43971839,197.7,197.46,75.4458]
[1756746737732,0.95,197.65,197.42,8.03]
[1756746737933,7.43971839,197.66,197.38,79.68218203]
[1756746738134,339.58,197.71,197.48,8.03]
[1756746738135,0.95,197.64,197.48,8.03]
[1756746738539,167.48,197.63,197.48,78.9125]
[1756746738745,167.48,197.63,197.49,8.03]
[1756746738941,0.95,197.64,197.5,8.03]
[1756746739136,168.92,197.64,197.52,8.03]
[1756746739443,0.95,197.75,197.6,8.03]
[1756746739639,1455.44,197.81,197.63,70.8303]
[1756746739640,339.68,197.8,197.63,70.8303]
[1756746739834,0.95,197.89,197.68,70.8119]
[1756746740034,0.95,197.89,197.71,8.03]
[1756746740234,170.44,197.88,197.73,8.03]
[1756746740745,170.44,197.88,197.75,8.03]
[1756746741047,0.95,197.95,197.8,70.7696]
[1756746741244,0.95,198.01,197.83,8.03]
[1756746741538,171.82,198.0,197.83,8.03]
[1756746741737,0.95,197.98,197.83,8.03]
[1756746741944,7.43971839,197.99,197.78,78.21641839]
[1756746741945,7.43971839,197.99,197.78,7.43971839]
[1756746742138,0.95,197.94,197.78,7.43971839]
[1756746742337,0.95,197.93,197.76,8.03]
[1756746742535,0.95,197.89,197.71,8.03]
[1756746742734,0.95,197.89,197.75,8.03]
[1756746743240,0.95,197.91,197.77,8.03]
[1756746743547,8.38971839,197.91,197.77,8.03]
[1756746743739,7.43971839,197.87,197.69,8.03]
[1756746743936,7.43971839,197.87,197.69,15.46971839]
[1756746743937,0.95,197.87,197.69,15.46971839]
[1756746744240,511.86,197.88,197.74,8.03]
[1756746744444,0.95,197.87,197.74,8.03]
[1756746744845,0.95,197.87,197.67,8.03]
[1756746745143,0.95,197.85,197.67,8.03]
[1756746745649,0.95,197.81,197.61,15.46971839]
[1756746745947,20.54,197.8,197.66,8.03]
[1756746746340,339.74,197.88,197.7,8.03]
[1756746746341,0.95,197.87,197.7,8.03]
[1756746746635,172.14,197.86,197.7,8.03]
[1756746747237,172.14,197.86,197.56,242.8761]
[1756746747436,7.43971839,197.79,197.6,8.03]
[1756746747636,0.95,197.78,197.6,8.03]
[1756746747838,7.43971839,197.75,197.6,8.03]
[1756746748036,0.95,197.74,197.6,8.03]
[1756746748447,61.12,197.73,197.6,8.03]
[1756746748647,0.95,197.74,197.6,8.03]
[1756746748839,0.95,197.8,197.63,7.43971839]
[1756746749149,92.48,197.81,197.68,8.03]
[1756746749448,339.74,197.88,197.76,8.03]
[1756746749852,70.7211,197.94,197.76,8.03]
[1756746750141,70.7211,197.94,197.8,8.03]
[1756746750546,173.11,197.95,197.8,8.03]
[1756746751341,8.38971839,197.94,197.8,8.03]
[1756746751541,0.95,197.93,197.73,8.03]
[1756746751941,0.95,197.93,197.77,8.03]
[1756746752142,172.55,197.93,197.77,8.03]
[1756746752644,179.03971839,197.93,197.73,8.03]
[1756746752845,7.43971839,197.89,197.73,8.03]
[1756746753046,0.95,197.88,197.73,8.03]
[1756746754843,0.8800435,197.86,197.77,8.03]
[1756746755056,0.95,197.95,197.77,8.03]
[1756746755057,1.58,197.94,197.77,8.03]
[1756746756043,0.95,197.9,197.71,8.03]
[1756746756248,1.58,197.94,197.71,8.03]
[1756746756249,0.95,197.86,197.8,200.0]
[1756746756444,0.95,197.84,197.8,200.0]
[1756746756642,0.95,197.81,197.8,200.0]
[1756746757043,0.95,197.81,197.8,8.30585601]
[1756746757346,76.2662,197.81,197.8,5.601e-05]
[1756746757841,245.8362,197.81,197.8,5.601e-05]
[1756746758347,246.3362,197.81,197.8,5.601e-05]
[1756746758843,75.8162,197.81,197.8,5.601e-05]
[1756746759042,75.3162,197.81,197.8,5.601e-05]
[1756746759347,240.9127,197.85,197.8,5.601e-05]
[1756746759543,7.43971839,197.91,197.8,5.601e-05]
[1756746759743,509.82,197.86,197.8,5.601e-05]
[1756746760547,169.98,197.85,197.8,5.601e-05]
[1756746761857,339.84,197.98,197.82,7.92]
[1756746762153,169.62,197.92,197.82,7.92]
[1756746762351,339.84,197.98,197.82,7.92]
[1756746762553,339.84,197.98,197.86,7.92]
[1756746762554,0.87964309,197.96,197.86,7.92]
[1756746763449,7.43971839,198.1,197.9,7.92]
[1756746763649,169.08,198.09,197.9,7.92]
[1756746763846,0.87928747,198.06,197.9,7.92]
[1756746764257,0.87928747,198.06,197.93,7.43971839]
[1756746764455,0.87928747,198.06,197.97,7.43971839]
[1756746764756,169.63906536,198.09,197.98,7.92]
[1756746765156,70.6713,198.08,197.98,7.92]
[1756746765359,70.6776,198.06,197.98,7.92]
[1756746765556,70.6849,198.04,197.93,7.43971839]
[1756746765758,70.6889,198.03,197.94,7.92]
[1756746765947,70.6898,198.03,197.94,7.92]
[1756746766152,70.6776,198.06,197.94,7.92]
[1756746766347,4.5441,198.04,197.94,7.92]
[1756746766553,169.63906536,198.09,197.94,7.92]
[1756746766754,70.6708,198.08,197.97,7.43971839]
[1756746766953,168.26,198.07,197.97,7.43971839]
[1756746767155,4.5438,198.05,197.97,7.43971839]
[1756746767356,168.26,198.07,197.97,7.43971839]
[1756746767357,70.6896,198.03,197.97,7.43971839]
[1756746767658,70.6851,198.04,197.94,7.92]
[1756746767659,70.692,198.02,197.94,7.92]
[1756746767859,4.5447,198.01,197.94,7.92]
[1756746768159,70.6989,198.0,197.94,7.92]
[1756746768364,238.4789,198.0,197.94,7.92]
[1756746768550,4.5457,197.97,197.9,7.43971839]
[1756746768957,70.7097,197.97,197.89,7.92]
[1756746769355,70.7027,197.99,197.89,7.92]
[1756746769658,167.7,198.02,197.93,7.92]
[1756746769851,70.6989,198.0,197.93,7.92]
[1756746770052,70.7027,197.99,197.93,7.92]
[1756746770356,70.7027,197.99,197.87,15.35971839]
[1756746770562,70.7132,197.96,197.88,7.92]
[1756746770758,238.3468,197.98,197.88,7.92]
[1756746771062,4.5461,197.95,197.88,7.92]
[1756746772454,167.64,197.98,197.82,7.92]
[1756746772661,0.03414988,197.93,197.9,0.03639796]
[1756746772860,168.0,197.92,197.9,0.03639796]
[1756746774264,168.5,197.92,197.9,0.03639796]
[1756746774466,168.0,197.92,197.9,0.03639796]
[1756746774965,167.6,197.91,197.9,0.03639796]
[1756746775166,0.03414988,197.93,197.9,0.03639796]
[1756746775468,167.42,197.92,197.9,0.03639796]
[1756746776156,167.92,197.92,197.9,0.03639796]
[1756746776561,0.03414988,197.93,197.9,0.03639796]
[1756746776865,167.14,197.91,197.9,0.03639796]
[1756746777358,166.8,197.91,197.9,0.03639796]
[1756746777566,0.03414988,197.93,197.9,0.03639796]
[1756746777864,166.76,197.92,197.9,0.03639796]
[1756746778367,0.03414988,197.93,197.9,7.95639796]
[1756746778869,4.58064988,197.93,197.9,0.03639796]
[1756746779367,4.58064988,197.93,197.9,7.95639796]
[1756746779665,4.5469,197.91,197.9,0.03639796]
[1756746780072,0.03414988,197.93,197.9,7.95639796]
[1756746780271,0.03414988,197.93,197.91,7.92]
[1756746780472,0.03414988,197.93,197.9,0.03639796]
[1756746780668,0.04,198.06,197.91,7.92]
[1756746780868,165.88,198.02,197.91,7.92]
[1756746781068,70.6768,198.07,197.94,7.92]
[1756746781266,339.66,198.1,197.98,7.92]
[1756746781466,0.87906536,198.09,197.98,7.92]
[1756746781667,165.84,198.08,197.98,7.92]
[1756746781867,165.84,198.08,198.02,0.03647876]
[1756746782267,0.87906536,198.09,198.02,0.03647876]
[1756746782464,339.66,198.1,198.02,7.95647876]
[1756746782772,165.56,198.09,198.02,7.95647876]
[1756746783370,339.66,198.1,198.02,7.95647876]
[1756746783674,339.66,198.1,198.03,7.43971839]
[1756746784170,339.66,198.1,198.02,7.95647876]
[1756746785566,164.88,198.09,198.02,7.95647876]
[1756746786472,339.66,198.1,198.02,7.95647876]
[1756746786667,164.66,198.11,198.03,7.43971839]
[1756746786881,164.3,198.11,198.03,7.43971839]
[1756746787474,0.04,198.17,198.07,7.43971839]
[1756746787674,164.22,198.15,198.07,7.43971839]
[1756746788377,164.22,198.15,198.09,0.03621864]
[1756746790077,163.44,198.15,198.09,0.03621864]
[1756746790981,0.04,198.17,198.09,0.03621864]
[1756746791183,0.87854384,198.2,198.1,7.43971839]
[1756746791377,163.52,198.2,198.1,7.43971839]
[1756746791776,163.52,198.2,198.13,0.03538771]
[1756746791973,0.04,198.28,198.14,15.44971839]
[1756746792276,163.5,198.27,198.18,15.44971839]
[1756746792478,339.44,198.36,198.18,8.01]
[1756746792676,339.44,198.36,198.17,70.638]
[1756746792677,339.48,198.36,198.24,7.43971839]
[1756746793170,0.03444874,198.32,198.24,7.43971839]
[1756746793575,0.03444874,198.32,198.28,0.03828973]
[1756746793772,0.03444874,198.32,198.29,8.01]
[1756746793970,0.03444874,198.32,198.28,7.47800812]
[1756746794772,0.03444874,198.32,198.29,8.01]
[1756746794972,0.03444874,198.32,198.28,7.47800812]
[1756746795479,0.03444874,198.32,198.29,7.43971839]
[1756746796684,0.03444874,198.32,198.28,0.03828973]
[1756746797486,0.03444874,198.32,198.28,8.04828973]
[1756746797688,0.03444874,198.32,198.28,0.03828973]
[1756746798080,0.04,198.31,198.28,0.03828973]
[1756746798686,0.03444874,198.32,198.28,0.03828973]
[1756746799084,162.7,198.31,198.28,0.03828973]
[1756746799279,0.03444874,198.32,198.28,0.03828973]
[1756746799890,0.04,198.31,198.28,0.03828973]
[1756746800287,0.03444874,198.32,198.28,0.03828973]
[1756746800685,0.04,198.31,198.28,0.03828973]
[1756746800890,0.03444874,198.32,198.28,0.03828973]
[1756746801394,162.23444874,198.32,198.28,0.03828973]
[1756746801591,162.27444874,198.32,198.28,0.03828973]
[1756746802188,0.04,198.31,198.28,0.03828973]
[1756746802486,162.23444874,198.32,198.28,0.03828973]
[1756746802687,0.5,198.31,198.12,8.01]
[1756746802887,7.43971839,198.31,198.12,8.01]
[1756746803788,7.43971839,198.31,198.04,8.01]
[1756746804087,7.43971839,198.31,198.07,7.43971839]
[1756746804284,7.43971839,198.35,198.12,8.01]
[1756746804486,139.68,198.34,198.12,8.01]
[1756746805284,7.43971839,198.35,198.15,7.43971839]
[1756746805496,161.44,198.34,198.16,8.01]
[1756746806387,7.43971839,198.35,198.15,7.43971839]
[1756746806593,161.18,198.34,198.12,8.01]
[1756746806793,7.43971839,198.35,198.16,8.01]
[1756746806986,161.1,198.34,198.16,8.01]
[1756746808490,161.1,198.34,198.1,15.44971839]
[1756746808787,7.43971839,198.29,198.1,15.44971839]
[1756746808993,340.31786789,198.36,198.1,15.44971839]
[1756746809190,7.43971839,198.31,198.1,15.44971839]
[1756746809387,160.64,198.3,198.11,8.01]
[1756746809587,160.64,198.3,198.11,12.5524]
[1756746809796,7.43971839,198.31,198.14,7.43971839]
[1756746809997,7.43971839,198.31,198.15,8.01]
[1756746809998,160.58,198.29,198.15,8.01]
[1756746810188,7.43971839,198.35,198.15,8.01]
[1756746810683,160.38,198.34,198.15,8.01]
[1756746811384,7.43971839,198.35,198.15,8.01]
[1756746811582,160.34,198.34,198.15,8.01]
[1756746812588,7.43971839,198.31,198.1,15.44971839]
[1756746812893,7.43971839,198.27,198.1,8.01]
[1756746813094,160.0,198.26,198.1,8.01]
[1756746813489,159.9,198.25,198.1,8.01]
[1756746813689,7.43971839,198.27,198.1,8.01]
[1756746813884,15.15,198.34,198.1,15.44971839]
[1756746814089,7.43971839,198.31,198.1,15.44971839]
[1756746814694,7.43971839,198.27,198.1,8.01]
[1756746814894,159.84,198.26,198.1,8.01]
[1756746816289,15.15,198.35,198.1,8.01]
[1756746816491,7.43971839,198.3,198.1,15.44971839]
[1756746817585,7.43971839,198.22,198.0,8.01]
[1756746817783,7.43971839,198.22,197.92,70.7246]
[1756746817784,498.5,198.21,197.98,7.43971839]
[1756746817991,7.43971839,198.18,197.98,7.51]
[1756746818491,160.26,198.17,197.98,7.51]
[1756746818690,7.43971839,198.18,197.98,7.51]
[1756746818889,160.2,198.17,197.98,7.51]
[1756746819493,160.12,198.16,198.01,7.43971839]
[1756746819796,160.02,198.15,198.02,7.51]
[1756746820696,160.06,198.14,198.02,7.51]
[1756746820895,159.96,198.13,198.02,7.51]
[1756746821084,159.96,198.12,198.02,7.51]
[1756746822196,346.59971839,198.21,198.02,7.51]
[1756746822399,339.16,198.21,198.02,7.51]
[1756746822597,159.56,198.2,198.02,7.51]
[1756746823492,339.16,198.21,198.02,7.51]
[1756746823691,159.5,198.2,198.02,7.51]
[1756746823893,7.43971839,198.18,198.02,7.51]
[1756746824298,7.43971839,198.18,197.97,7.51]
[1756746824690,7.43971839,198.14,197.97,7.51]
[1756746824891,159.3,198.13,197.97,7.51]
[1756746825295,7.43971839,198.14,197.97,7.51]
[1756746825495,159.2,198.13,197.97,7.51]
[1756746826293,15.15,198.2,197.97,7.51]
[1756746826495,7.43971839,198.15,197.97,7.51]
[1756746826894,158.84,198.14,197.97,7.51]
[1756746827897,7.43971839,198.16,197.97,14.94971839]
[1756746828497,158.52,198.15,197.97,14.94971839]
[1756746828701,158.4,198.14,197.97,14.94971839]
[1756746828901,158.4,198.14,197.97,7.51]
[1756746829097,7.43971839,198.16,197.97,7.51]
[1756746829293,158.24,198.15,197.98,7.51]
[1756746829495,339.16,198.21,198.02,7.51]
[1756746829800,158.22,198.2,198.02,7.51]
[1756746830000,158.2,198.19,198.02,7.51]
[1756746830698,339.16,198.21,198.02,7.51]
[1756746831003,157.94,198.2,198.06,7.51]
[1756746832301,339.16,198.21,198.06,7.51]
[1756746832502,157.5,198.2,198.06,7.51]
[1756746833899,339.16,198.21,198.06,7.51]
[1756746834306,157.14,198.2,198.06,7.51]
[1756746835400,339.16,198.21,198.06,7.51]
[1756746835598,156.74,198.2,198.06,7.51]
[1756746836401,156.74,198.2,198.06,12.0535]
[1756746836705,156.74,198.2,198.06,7.51]
[1756746839016,156.74,198.2,197.95,74.87717421]
[1756746839017,156.74,198.2,198.01,14.94971839]
[1756746839218,164.17971839,198.2,198.01,7.51]
[1756746840809,7.43971839,198.2,198.01,7.51]
[1756746841112,339.16,198.21,198.04,7.51]
[1756746841113,155.88,198.19,198.04,7.51]
[1756746842815,339.16,198.21,198.04,7.51]
[1756746843019,155.06,198.18,198.04,14.94971839]
[1756746843210,339.16,198.21,198.08,7.43971839]
[1756746843414,339.16,198.21,198.09,7.51]
[1756746843415,154.92,198.17,198.09,7.51]
[1756746843618,339.16,198.21,198.09,7.51]
[1756746843814,154.86,198.2,198.1,4.5424]
[1756746844019,154.86,198.2,198.11,7.51]
[1756746844518,154.68,198.2,198.12,7.43971839]
[1756746844717,154.68,198.2,198.13,7.51]
[1756746845312,339.16,198.21,198.13,7.51]
[1756746847425,339.16,198.21,198.07,4.5432]
[1756746847618,339.16,198.21,198.08,7.51]
[1756746848425,339.16,198.21,198.04,7.43971839]
[1756746848824,339.16,198.21,198.02,8.05]
[1756746849020,339.16,198.21,198.03,7.43971839]
[1756746851618,339.16,198.21,198.02,8.05]
[1756746852526,7.43971839,198.18,197.97,8.05]
[1756746852929,152.8,198.17,197.97,8.05]
[1756746853724,152.8,198.17,197.97,15.48971839]
[1756746855727,152.8,198.17,197.97,8.05]
[1756746855930,7.43971839,198.14,197.97,8.05]
[1756746856929,7.43971839,198.14,197.94,7.43971839]
[1756746857128,26.18,198.13,197.94,7.43971839]
[1756746857423,7.43971839,198.14,197.94,7.43971839]
[1756746857628,5.64631245,198.16,197.95,8.05]
[1756746857825,31.82631245,198.15,197.95,8.05]
[1756746858020,151.98,198.14,198.0,8.05]
[1756746858725,151.98,198.14,197.99,4.56976574]
[1756746858927,157.62631245,198.14,197.99,4.56976574]
[1756746859131,151.74,198.13,197.99,4.56976574]
[1756746859531,4.56976574,198.15,198.0,8.05]
[1756746859730,151.72,198.14,198.0,8.05]
[1756746860128,5.64631245,198.17,198.0,8.05]
[1756746860333,151.52,198.16,198.03,8.05]
[1756746861330,156.08976574,198.16,198.01,4.56976574]
[1756746861531,161.73607819,198.16,198.01,4.56976574]
[1756746861729,161.73607819,198.16,197.98,12.61976574]
[1756746861930,161.73607819,198.16,197.99,4.56976574]
[1756746862533,4.56976574,198.13,197.99,4.56976574]
[1756746862933,8.32599288,198.19,198.0,8.05]
[1756746862934,151.14,198.12,198.0,8.05]
[1756746863134,151.14,198.12,198.02,4.56976574]
[1756746863736,151.14,198.12,198.0,8.05]
[1756746863938,4.56976574,198.16,198.02,4.56976574]
[1756746864131,5.64631245,198.19,198.02,4.56976574]
[1756746864132,150.96,198.15,198.02,4.56976574]
[1756746864639,150.96,198.15,198.0,8.05]
[1756746865037,4.56976574,198.16,198.0,8.05]
[1756746865334,150.7,198.15,198.02,4.56976574]
[1756746865639,4.56976574,198.16,198.02,4.56976574]
[1756746865836,150.56,198.15,198.03,8.05]
[1756746866033,5.64631245,198.2,197.97,74.86957421]
[1756746866228,155.06976574,198.19,198.03,4.56976574]
[1756746867537,150.32,198.18,198.04,8.05]
[1756746867733,339.16,198.21,198.07,8.05]
[1756746867933,150.26,198.2,198.07,8.05]
[1756746868132,150.26,198.2,198.09,4.56976574]
[1756746870636,150.12,198.19,198.1,8.05]
[1756746871032,339.16,198.21,198.11,4.56976574]
[1756746871238,150.02,198.2,198.11,4.56976574]
[1756746879046,339.16,198.21,198.1,8.05]
[1756746879350,487.94,198.21,198.14,4.56976574]
[1756746879649,487.94,198.21,198.14,12.67976574]
[1756746880148,148.64,198.2,198.14,12.67976574]
[1756746881444,339.16,198.21,198.14,12.67976574]
[1756746881648,148.24,198.2,198.14,12.67976574]
[1756746881846,339.16,198.21,198.18,8.11]
[1756746882048,339.24,198.34,198.18,8.11]
[1756746882354,148.2,198.33,198.18,8.11]
[1756746882651,4.56976574,198.32,198.12,8.11]
[1756746882852,4.56976574,198.32,198.15,4.56976574]
[1756746883152,148.54,198.31,198.15,4.56976574]
[1756746883355,4.56976574,198.29,198.13,4.56976574]
[1756746883749,4.56976574,198.26,198.1,4.56976574]
[1756746884049,148.54,198.25,198.1,4.56976574]
[1756746885154,148.24,198.24,198.1,4.56976574]
[1756746885356,15.15,198.29,198.1,4.56976574]
[1756746885551,4.56976574,198.27,198.11,8.11]
[1756746887757,4.56976574,198.24,198.11,8.11]
[1756746888354,4.56976574,198.24,198.08,4.56976574]
[1756746888958,74.38,198.23,198.08,4.56976574]
[1756746889156,82.22,198.22,198.08,4.56976574]
[1756746890553,4.56976574,198.24,198.08,4.56976574]
[1756746890856,88.52,198.21,198.08,4.56976574]
[1756746891058,96.76,198.2,198.08,4.56976574]
[1756746891249,4.56976574,198.24,198.08,4.56976574]
[1756746891448,102.28,198.23,198.08,4.56976574]
[1756746891957,111.92,198.22,198.08,4.56976574]
[1756746892753,4.56976574,198.21,198.07,8.11]
[1756746894260,4.56976574,198.25,198.09,8.11]
[1756746894459,15.76,198.24,198.09,8.11]
[1756746895555,355.0,198.24,198.09,8.11]
[1756746895761,4.56976574,198.22,198.08,4.56976574]
[1756746895961,4.56976574,198.23,198.08,12.67976574]
[1756746896157,146.28,198.22,198.08,12.67976574]
[1756746896357,146.3,198.21,198.08,12.67976574]
[1756746896860,4.56976574,198.23,198.08,12.67976574]
[1756746897061,146.18,198.22,198.08,12.67976574]
[1756746897256,146.14,198.21,198.08,12.67976574]
[1756746898455,146.14,198.21,198.08,8.11]
[1756746899157,4.56976574,198.2,198.05,4.56976574]
[1756746899857,4.56976574,198.2,198.04,8.11]
[1756746900961,145.62,198.19,198.04,8.11]
[1756746901163,4.56976574,198.17,198.0,8.11]
[1756746901375,4.56976574,198.14,198.0,8.11]
[1756746902065,12.26,198.13,198.0,8.11]
[1756746902266,4.56976574,198.14,198.0,8.11]
[1756746902462,14.92,198.13,198.0,8.11]
[1756746904663,4.56976574,198.11,198.0,8.11]
[1756746905063,339.3,198.1,197.96,8.11]
[1756746905570,4.56976574,198.08,197.96,8.11]
[1756746906070,144.82,198.07,197.96,8.11]
[1756746906468,4.56976574,198.08,197.96,8.11]
[1756746906765,144.66,198.07,197.98,8.11]
[1756746907467,339.3,198.1,197.98,8.11]
[1756746907770,144.6,198.09,198.01,8.11]
[1756746907968,339.3,198.1,198.01,8.11]
[1756746908169,339.3,198.1,198.04,8.02]
[1756746908764,483.72,198.1,198.04,8.02]
[1756746909159,483.74,198.1,198.04,8.02]
[1756746909365,339.3,198.1,198.04,8.02]
[1756746909565,339.3,198.1,198.0,4.56976574]
[1756746909766,339.3,198.1,198.0,12.58976574]
[1756746910066,144.44,198.09,198.01,8.02]
[1756746910264,144.44,198.09,198.03,4.56976574]
[1756746910464,4.56976574,198.21,198.04,8.02]
[1756746910666,339.36,198.2,198.07,8.02]
[1756746910859,144.3,198.19,198.01,8.02]
[1756746911069,144.3,198.19,197.93,8.46035362]
[1756746911070,4.56976574,198.17,198.02,4.56976574]
[1756746911270,4.56976574,198.17,198.03,8.02]
[1756746911664,165.09631245,198.19,197.98,12.58976574]
[1756746911867,4.56976574,198.14,197.98,12.58976574]
[1756746912167,4.56976574,198.14,197.98,8.02]
[1756746913261,140.78,198.13,197.98,8.02]
[1756746914164,70.6741,198.07,197.98,8.02]
[1756746914366,70.6822,198.05,197.98,8.02]
[1756746914564,70.6916,198.02,197.93,8.02]
[1756746916065,70.6916,198.02,197.91,4.56976574]
[1756746916066,70.6916,198.02,197.87,8.02]
[1756746916267,75.26136574,198.02,197.87,8.02]
[1756746916463,70.6916,198.02,197.87,8.02]
[1756746916664,144.7,198.01,197.87,8.02]
[1756746916862,144.7,198.0,197.89,8.02]
[1756746919373,144.7,198.0,197.85,12.58976574]
[1756746920976,144.26,197.99,197.88,4.56976574]
[1756746921176,144.18,197.98,197.89,8.02]
[1756746921369,339.38,198.04,197.89,8.02]
[1756746921569,144.18,198.03,197.89,8.02]
[1756746921776,70.706,197.98,197.89,8.02]
[1756746922376,70.692,198.02,197.89,8.02]
[1756746922572,144.02,197.97,197.89,12.58976574]
[1756746922773,143.98,197.97,197.89,12.58976574]
[1756746923472,148.4854,197.98,197.9,8.02]